fUSD/lending_fUSD_20251220
["ID","MTS","AMOUNT","RATE_DAILY","PERIOD"]
[399231914,1766191837733,-31875.28385275,0.00012007,2]
[399231915,1766191837743,-299.99,0.00012098,2]
[399231916,1766191837753,-9999.99,0.00012098,2]
[399231917,1766191837763,-9999.99,0.00012098,2]
[399231918,1766191837773,-999.99,0.00012098,2]
[399231919,1766191837783,-9999.99,0.00012098,2]
[399231920,1766191837794,-11422.65,0.00012098,2]
[399231921,1766191837803,-150.99,0.00012098,2]
[399231922,1766191837813,-9999.99,0.00012098,2]
[399231924,1766191837823,-150.99,0.00012098,2]
[399231926,1766191837834,-200.0,0.00012119,2]
[399231928,1766191837844,-200.0,0.00012119,2]
[399231930,1766191837854,-200.0,0.0001224,2]
[399231932,1766191837864,-200.0,0.0001224,2]
[399231934,1766191837874,-166.66,0.00012246,2]
[399231936,1766191837884,-345.04,0.0001228,2]
[399231938,1766191837895,-200.0,0.00012363,2]
[399231940,1766191837904,-200.0,0.00012363,2]
[399231942,1766191837916,-322.9,0.00012377,2]
[399231944,1766191837926,-11646.56,0.00012385,2]
[399231946,1766191837937,-200.0,0.00012437,2]
[399231948,1766191837947,-3927.26461855,0.00012455,2]
[399231950,1766191837957,-6249.21046004,0.00012455,2]
[399231952,1766191837967,-200.0,0.00012486,2]
[399231955,1766191837976,-200.0,0.00012486,2]
[399231957,1766191837986,-500.0,0.00012547,2]
[399231959,1766191837996,-200.0,0.00012547,2]
[399231961,1766191838006,-200.0,0.00012547,2]
[399231963,1766191838015,-803.0,0.00012555,2]
[399231965,1766191838025,-1059.5542543,0.00012613,2]
[399231967,1766191838035,-166.66,0.0001265,2]
[399231970,1766191838053,-1024.0,0.00012722,2]
[399231972,1766191838066,-300.0,0.00012722,2]
[399231975,1766191838076,-370.0,0.00012722,2]
[399231977,1766191838087,-23179.1,0.00012725,2]
[399231979,1766191838097,-712.0,0.00012818,2]
[399231981,1766191838109,-345.04,0.00012962,2]
[399231983,1766191838120,-3927.26461855,0.0001301,2]
[399231986,1766191838131,-6249.21046004,0.0001301,2]
[399231988,1766191838142,-150.0,0.00013018,2]
[399231990,1766191838153,-166.66,0.00013055,2]
[399231992,1766191838164,-255.0,0.00013078,2]
[399231994,1766191838175,-458.0,0.00013088,2]
[399231996,1766191838186,-195.0,0.00013089,2]
[399231999,1766191838196,-500.0,0.00013095,2]
[399232001,1766191838207,-200.0,0.00013095,2]
[399232003,1766191838218,-200.0,0.00013095,2]
[399232005,1766191838229,-250.0,0.00013199,2]
[399232007,1766191838240,-195.0,0.00013199,2]
[399232009,1766191838250,-1600.0,0.0001329,2]
[399232012,1766191838261,-1059.5542543,0.00013328,2]
[399232014,1766191838271,-3240.0,0.00013412,2]
[399232016,1766191838282,-166.66,0.00013459,2]
[399232018,1766191838293,-3927.26461855,0.00013566,2]
[399232020,1766191838303,-6249.21046004,0.00013566,2]
[399232022,1766191838313,-500.0,0.00013643,2]
[399232024,1766191838324,-200.0,0.00013643,2]
[399232026,1766191838334,-200.0,0.00013643,2]
[399232028,1766191838345,-345.04,0.00013644,2]
[399232030,1766191838355,-500.0,0.00013698,2]
[399232032,1766191838366,-500.0,0.00013698,2]
[399232035,1766191838376,-500.0,0.00013698,2]
[399232037,1766191838391,-500.0,0.00013698,2]
[399232039,1766191838402,-500.0,0.00013698,2]
[399232042,1766191838413,-500.0,0.00013698,2]
[399232044,1766191838424,-500.0,0.00013698,2]
[399232046,1766191838434,-500.0,0.00013698,2]
[399232048,1766191838445,-500.0,0.00013698,2]
[399232050,1766191838455,-500.0,0.00013698,2]
[399232052,1766191838466,-500.0,0.00013698,2]
[399232055,1766191838477,-500.0,0.00013698,2]
[399232057,1766191838487,-500.0,0.00013698,2]
[399232059,1766191838498,-500.0,0.00013698,2]
[399232061,1766191838509,-500.0,0.00013698,2]
[399232063,1766191838520,-508.81773728,0.00013698,2]
[399232065,1766191838531,-500.0,0.00013698,2]
[399232067,1766191838541,-500.0,0.00013698,2]
[399232070,1766191838558,-500.0,0.00013698,2]
[399232072,1766191838569,-500.0,0.00013698,2]
[399232074,1766191838584,-332.08852562,0.00013698,2]
[399232077,1766191838597,-500.0,0.00013698,2]
[399232079,1766191838607,-500.0,0.00013698,2]
[399232081,1766191838619,-500.0,0.00013698,2]
[399232083,1766191838631,-500.0,0.00013698,2]
[399232085,1766191838642,-500.0,0.00013698,2]
[399232087,1766191838652,-500.0,0.00013698,2]
[399232090,1766191838664,-311.27445849,0.00013698,2]
[399232092,1766191838675,-500.0,0.00013698,2]
[399232094,1766191838685,-500.0,0.00013698,2]
[399232096,1766191838697,-500.0,0.00013698,2]
[399232098,1766191838708,-500.0,0.00013698,2]
[399232100,1766191838718,-500.0,0.00013698,2]
[399232102,1766191838729,-500.0,0.00013698,2]
[399232103,1766191838739,-500.0,0.00013698,2]
[399232104,1766191838750,-500.0,0.00013698,2]
[399232105,1766191838761,-500.0,0.00013698,2]
[399232106,1766191838775,-500.0,0.00013698,2]
[399232107,1766191838786,-500.0,0.00013698,2]
[399232108,1766191838798,-500.0,0.00013698,2]
[399232110,1766191838809,-500.0,0.00013698,2]
[399232112,1766191838820,-500.0,0.00013698,2]
[399232114,1766191838831,-500.0,0.00013698,2]
[399232116,1766191838842,-500.0,0.00013698,2]
[399232118,1766191838853,-527.72795977,0.00013698,2]
[399232120,1766191838864,-500.0,0.00013698,2]
[399232123,1766191838875,-500.0,0.00013698,2]
[399232125,1766191838885,-500.0,0.00013698,2]
[399232127,1766191838896,-500.0,0.00013698,2]
[399232129,1766191838906,-500.0,0.00013698,2]
[399232131,1766191838917,-500.0,0.00013698,2]
[399232133,1766191838927,-500.0,0.00013698,2]
[399232135,1766191838938,-500.0,0.00013698,2]
[399232138,1766191838948,-500.0,0.00013698,2]
[399232140,1766191838959,-500.0,0.00013698,2]
[399232142,1766191838972,-500.0,0.00013698,2]
[399232144,1766191838983,-500.0,0.00013698,2]
[399232146,1766191838993,-500.0,0.00013698,2]
[399232149,1766191839004,-500.0,0.00013698,2]
[399232151,1766191839015,-500.0,0.00013698,2]
[399232153,1766191839025,-500.0,0.00013698,2]
[399232155,1766191839035,-500.0,0.00013698,2]
[399232157,1766191839045,-500.0,0.00013698,2]
[399232159,1766191839056,-500.0,0.00013698,2]
[399232162,1766191839066,-500.0,0.00013698,2]
[399232164,1766191839077,-500.0,0.00013698,2]
[399232166,1766191839087,-500.0,0.00013698,2]
[399232168,1766191839098,-500.0,0.00013698,2]
[399232170,1766191839108,-500.0,0.00013698,2]
[399232172,1766191839118,-500.0,0.00013698,2]
[399232174,1766191839129,-500.0,0.00013698,2]
[399232176,1766191839139,-500.0,0.00013698,2]
[399232179,1766191839150,-500.0,0.00013698,2]
[399232181,1766191839163,-500.0,0.00013698,2]
[399232183,1766191839174,-500.0,0.00013698,2]
[399232185,1766191839185,-500.0,0.00013698,2]
[399232187,1766191839195,-500.0,0.00013698,2]
[399232190,1766191839206,-500.0,0.00013698,2]
[399232192,1766191839217,-500.0,0.00013698,2]
[399232194,1766191839228,-500.0,0.00013698,2]
[399232196,1766191839239,-500.0,0.00013698,2]
[399232198,1766191839250,-500.0,0.00013698,2]
[399232201,1766191839260,-500.0,0.00013698,2]
[399232203,1766191839270,-500.0,0.00013698,2]
[399232205,1766191839281,-500.0,0.00013698,2]
[399232207,1766191839292,-500.0,0.00013698,2]
[399232209,1766191839302,-500.0,0.00013698,2]
[399232211,1766191839314,-500.0,0.00013698,2]
[399232213,1766191839325,-500.0,0.00013698,2]
[399232215,1766191839335,-500.0,0.00013698,2]
[399232218,1766191839346,-500.0,0.00013698,2]
[399232220,1766191839358,-500.0,0.00013698,2]
[399232222,1766191839368,-500.0,0.00013698,2]
[399232224,1766191839379,-500.0,0.00013698,2]
[399232226,1766191839390,-500.0,0.00013698,2]
[399232228,1766191839400,-500.0,0.00013698,2]
[399232231,1766191839411,-500.0,0.00013698,2]
[399232233,1766191839422,-500.0,0.00013698,2]
[399232235,1766191839432,-1300.4,0.00013698,2]
[399232237,1766191839443,-13713.01,0.00013699,2]
[399232239,1766191839455,-583.7,0.00013699,2]
[399232242,1766191839465,-627.66949341,0.00013699,2]
[399232244,1766191839477,-165.19404359,0.00013699,2]
[399232246,1766191839488,-500.0,0.00013699,2]
[399232248,1766191839499,-500.0,0.00013699,2]
[399232250,1766191839510,-500.0,0.00013699,2]
[399232252,1766191839521,-500.0,0.00013699,2]
[399232255,1766191839532,-500.0,0.00013699,2]
[399232257,1766191839542,-500.0,0.00013699,2]
[399232258,1766191839555,-500.0,0.00013699,2]
[399232260,1766191839566,-241.79238999,0.00013699,2]
[399232262,1766191839578,-165.05782679,0.00013773,2]
[399232264,1766191839588,-500.0,0.00013773,2]
[399232266,1766191839599,-500.0,0.00013773,2]
[399232268,1766191839610,-500.0,0.00013773,2]
[399232278,1766191840070,-500.0,0.00013773,2]
[399232279,1766191840090,-500.0,0.00013773,2]
[399232280,1766191840103,-500.0,0.00013773,2]
[399232281,1766191840113,-250.59182654,0.00013773,2]
[399232282,1766191840123,-500.0,0.00013773,2]
[399232283,1766191840132,-500.0,0.00013773,2]
[399232284,1766191840141,-500.0,0.00013773,2]
[399232285,1766191840151,-500.0,0.00013773,2]
[399232286,1766191840160,-500.0,0.00013773,2]
[399232287,1766191840170,-500.0,0.00013773,2]
[399232288,1766191840179,-500.0,0.00013773,2]
[399232289,1766191840189,-500.0,0.00013773,2]
[399232290,1766191840199,-500.0,0.00013773,2]
[399232291,1766191840208,-500.0,0.00013773,2]
[399232292,1766191840218,-315.38138391,0.00013773,2]
[399232293,1766191840227,-500.0,0.00013773,2]
[399232294,1766191840237,-165.29019663,0.00013773,2]
[399232295,1766191840247,-166.66,0.00013863,2]
[399232296,1766191840256,-1000.0,0.00013878,2]
[399232297,1766191840266,-1852.42,0.00013944,2]
[399232300,1766191840275,-1300.4,0.00013972,2]
[399232303,1766191840284,-1059.5542543,0.00014042,2]
[399232305,1766191840293,-3927.26461855,0.00014122,2]
[399232307,1766191840302,-6249.21046004,0.00014122,2]
[399232308,1766191840311,-500.0,0.00014191,2]
[399232309,1766191840321,-200.0,0.00014191,2]
[399232310,1766191840330,-200.0,0.00014191,2]
[399232311,1766191840339,-1300.4,0.00014246,2]
[399232312,1766191840349,-310.0,0.00014254,2]
[399232313,1766191840358,-166.66,0.00014267,2]
[399232314,1766191840367,-500.0,0.00014321,2]
[399232315,1766191840376,-1000.0,0.00014321,2]
[399232316,1766191840386,-1000.0,0.00014321,2]
[399232317,1766191840395,-500.0,0.00014321,2]
[399232318,1766191840404,-865.22366697,0.00014321,2]
[399232319,1766191840413,-500.0,0.00014321,2]
[399232320,1766191840424,-1000.0,0.00014321,2]
[399232321,1766191840433,-345.04,0.00014327,2]
[399232322,1766191840442,-340.85086535,0.00014417,2]
[399232323,1766191840451,-19999.99,0.00014504,2]
[399232324,1766191840461,-1300.4,0.0001452,2]
[399232325,1766191840470,-3927.26461855,0.00014677,2]
[399232326,1766191840479,-6249.21046004,0.00014677,2]
[399232327,1766191840489,-207.4,0.00014738,2]
[399232328,1766191840498,-500.0,0.00014739,2]
[399232329,1766191840508,-200.0,0.00014739,2]
[399232330,1766191840518,-500.0,0.00014747,2]
[399232331,1766191840527,-1059.5542543,0.00014757,2]
[399232332,1766191840537,-1600.0,0.00014767,2]
[399232333,1766191840549,-1300.4,0.00014794,2]
[399232334,1766191840561,-340.85086532,0.00014831,2]
[399232335,1766191840570,-577.75284804,0.00014846,2]
[399232336,1766191840579,-220.0,0.00014856,2]
[399232337,1766191840590,-220.0,0.00014856,2]
[399232338,1766191840599,-220.0,0.00014856,2]
[399232339,1766191840609,-220.0,0.00014856,2]
[399232340,1766191840619,-500.0,0.00014856,2]
[399232341,1766191840628,-220.0,0.00014856,2]
[399232342,1766191840638,-500.0,0.00014856,2]
[399232343,1766191840647,-220.0,0.00014856,2]
[399232344,1766191840657,-500.0,0.00014856,2]
[399232345,1766191840667,-151.0,0.00014856,2]
[399232346,1766191840676,-250.0,0.00014856,2]
[399232347,1766191840686,-500.0,0.00014856,2]
[399232348,1766191840695,-251.30563383,0.00014856,2]
[399232349,1766191840704,-500.0,0.00014856,2]
[399232350,1766191840714,-250.0,0.00014856,2]
[399232351,1766191840723,-500.0,0.00014856,2]
[399232352,1766191840732,-500.0,0.00014856,2]
[399232353,1766191840742,-250.0,0.00014856,2]
[399232354,1766191840753,-500.0,0.00014856,2]
[399232355,1766191840763,-500.0,0.00014856,2]
[399232356,1766191840775,-250.0,0.00014856,2]
[399232357,1766191840784,-500.0,0.00014856,2]
[399232358,1766191840794,-500.0,0.00014856,2]
[399232359,1766191840804,-250.0,0.00014856,2]
[399232360,1766191840813,-500.0,0.00014856,2]
[399232361,1766191840823,-500.0,0.00014856,2]
[399232362,1766191840839,-250.0,0.00014856,2]
[399232363,1766191840848,-500.0,0.00014856,2]
[399232364,1766191840857,-500.0,0.00014856,2]
[399232365,1766191840867,-500.0,0.00014856,2]
[399232366,1766191840876,-250.0,0.00014856,2]
[399232367,1766191840886,-500.0,0.00014856,2]
[399232368,1766191840896,-500.0,0.00014856,2]
[399232369,1766191840906,-250.0,0.00014856,2]
[399232370,1766191840917,-500.0,0.00014856,2]
[399232371,1766191840927,-500.0,0.00014856,2]
[399232372,1766191840939,-250.0,0.00014856,2]
[399232373,1766191840948,-500.0,0.00014856,2]
[399232374,1766191840960,-250.0,0.00014856,2]
[399232375,1766191840971,-500.0,0.00014856,2]
[399232376,1766191840981,-574.12855637,0.00014856,2]
[399232377,1766191840991,-250.0,0.00014856,2]
[399232378,1766191841002,-500.0,0.00014856,2]
[399232379,1766191841012,-500.0,0.00014856,2]
[399232380,1766191841024,-500.0,0.00014856,2]
[399232381,1766191841034,-500.0,0.00014856,2]
[399232382,1766191841044,-500.0,0.00014856,2]
[399232383,1766191841055,-500.0,0.00014856,2]
[399232384,1766191841067,-500.0,0.00014856,2]
[399232385,1766191841077,-500.0,0.00014856,2]
[399232386,1766191841088,-500.0,0.00014856,2]
[399232387,1766191841098,-500.0,0.00014856,2]
[399232388,1766191841109,-1199.0,0.00014856,2]
[399232389,1766191841119,-500.0,0.00014856,2]
[399232390,1766191841128,-500.0,0.00014856,2]
[399232391,1766191841137,-579.05990396,0.00014856,2]
[399232392,1766191841147,-500.0,0.00014856,2]
[399232393,1766191841156,-500.0,0.00014856,2]
[399232394,1766191841165,-578.20924308,0.00014856,2]
[399232395,1766191841174,-250.0,0.00014856,2]
[399232396,1766191841183,-500.0,0.00014856,2]
[399232397,1766191841191,-250.0,0.00014856,2]
[399232398,1766191841200,-500.0,0.00014856,2]
[399232399,1766191841209,-164.68603605,0.00014856,2]
[399232400,1766191841219,-500.0,0.00014856,2]
[399232401,1766191841228,-500.0,0.00014856,2]
[399232402,1766191841237,-585.85170231,0.00014856,2]
[399232403,1766191841246,-500.0,0.00014856,2]
[399232404,1766191841255,-620.0,0.00014856,2]
[399232405,1766191841265,-500.0,0.00014856,2]
[399232406,1766191841274,-151.0,0.00014856,2]
[399232407,1766191841283,-200.0,0.00014856,2]
[399232408,1766191841292,-500.0,0.00014856,2]
[399232409,1766191841301,-500.0,0.00014856,2]
[399232410,1766191841310,-207.4,0.00014856,2]
[399232411,1766191841320,-9387.37340203,0.00014856,2]
[399232412,1766191841329,-215.0738,0.00014856,2]
[399232413,1766191841338,-223.0315306,0.00014856,2]
[399232414,1766191841347,-231.28369723,0.00014856,2]
[399232415,1766191841356,-239.84119403,0.00014856,2]
[399232416,1766191841365,-383.69630064,0.00014856,2]
[399232417,1766191841374,-500.0,0.00014856,2]
[399232418,1766191841383,-500.0,0.00014856,2]
[399232419,1766191841391,-500.0,0.00014856,2]
[399232420,1766191841400,-500.0,0.00014856,2]
[399232421,1766191841410,-151.0,0.00014856,2]
[399232422,1766191841419,-500.0,0.00014856,2]
[399232423,1766191841427,-500.0,0.00014856,2]
[399232424,1766191841436,-500.0,0.00014856,2]
[399232425,1766191841446,-500.0,0.00014856,2]
[399232426,1766191841456,-1037.0,0.00014856,2]
[399232427,1766191841465,-500.0,0.00014856,2]
[399232428,1766191841475,-500.0,0.00014856,2]
[399232429,1766191841484,-500.0,0.00014856,2]
[399232430,1766191841493,-500.0,0.00014856,2]
[399232431,1766191841503,-500.0,0.00014856,2]
[399232432,1766191841512,-500.0,0.00014856,2]
[399232433,1766191841522,-500.0,0.00014856,2]
[399232434,1766191841531,-500.0,0.00014856,2]
[399232435,1766191841540,-500.0,0.00014856,2]
[399232436,1766191841552,-500.0,0.00014856,2]
[399232437,1766191841561,-500.0,0.00014856,2]
[399232438,1766191841571,-500.0,0.00014856,2]
[399232439,1766191841580,-500.0,0.00014856,2]
[399232440,1766191841590,-500.0,0.00014856,2]
[399232441,1766191841599,-300.0,0.00014856,2]
[399232442,1766191841609,-500.0,0.00014867,2]
[399232443,1766191841618,-645.61981182,0.00014867,2]
[399232444,1766191841628,-500.0,0.00014867,2]
[399232445,1766191841637,-500.0,0.00014867,2]
[399232446,1766191841646,-205.80377761,0.00014867,2]
[399232447,1766191841655,-500.0,0.00014867,2]
[399232448,1766191841665,-500.0,0.00014867,2]
[399232449,1766191841674,-500.0,0.00014867,2]
[399232450,1766191841683,-502.6322512,0.00014867,2]
[399232451,1766191841693,-500.0,0.00014867,2]
[399232452,1766191841703,-257.42051995,0.00014867,2]
[399232453,1766191841713,-500.0,0.00014867,2]
[399232454,1766191841722,-500.0,0.00014867,2]
[399232455,1766191841732,-1169.28743146,0.00014868,2]
[399232456,1766191841741,-1500.0,0.00014868,2]
[399232457,1766191841750,-345.04,0.00015009,2]
[399232458,1766191841760,-1300.4,0.00015068,2]
[399232459,1766191841769,-3927.26461855,0.00015233,2]
[399232460,1766191841778,-6249.21046004,0.00015233,2]
[399232461,1766191841787,-340.85086532,0.00015245,2]
[399232462,1766191841796,-150.0,0.00015288,2]
[399232463,1766191841805,-150.0,0.00015288,2]
[399232464,1766191841814,-150.0,0.00015288,2]
[399232465,1766191841823,-150.0,0.00015288,2]
[399232466,1766191841832,-150.0,0.00015288,2]
[399232467,1766191841841,-150.0,0.00015288,2]
[399232468,1766191841850,-150.0,0.00015288,2]
[399232469,1766191841859,-151.0803606,0.00015288,2]
[399232470,1766191841868,-150.0,0.00015288,2]
[399232471,1766191841878,-150.0,0.00015288,2]
[399232472,1766191841887,-150.0,0.00015288,2]
[399232473,1766191841896,-150.0,0.00015288,2]
[399232474,1766191841905,-1300.4,0.00015342,2]
[399232475,1766191841915,-595.37131296,0.00015404,2]
[399232476,1766191841924,-151.0,0.00015404,2]
[399232477,1766191841933,-1075.369,0.00015404,2]
[399232478,1766191841943,-2000.0,0.00015416,2]
[399232479,1766191841952,-1059.5542543,0.00015471,2]
[399232480,1766191841961,-1000.0,0.00015613,2]
[399232481,1766191841970,-1300.4,0.00015616,2]
[399232482,1766191841979,-150.0,0.00015627,2]
[399232483,1766191841989,-340.85086532,0.00015659,2]
[399232484,1766191841998,-345.04,0.00015691,2]
[399232485,1766191842007,-250.0,0.00015722,2]
[399232486,1766191842018,-18872.89,0.00015758,2]
[399232487,1766191842028,-500.0,0.00015788,2]
[399232488,1766191842037,-500.0,0.00015788,2]
[399232489,1766191842047,-500.0,0.00015788,2]
[399232490,1766191842056,-500.0,0.00015788,2]
[399232491,1766191842064,-500.0,0.00015788,2]
[399232492,1766191842073,-500.0,0.00015788,2]
[399232493,1766191842084,-500.0,0.00015788,2]
[399232494,1766191842093,-3927.26461855,0.00015789,2]
[399232495,1766191842103,-6249.21046004,0.00015789,2]
[399232496,1766191842114,-1300.4,0.0001589,2]
[399232497,1766191842125,-617.40005154,0.00015952,2]
[399232498,1766191842136,-151.0,0.00015952,2]
[399232499,1766191842146,-299.03463329,0.00015952,2]
[399232500,1766191842158,-177.73185168,0.00015964,2]
[399232501,1766191842169,-150.0,0.00015967,2]
[399232502,1766191842178,-535.4,0.00015999,2]
[399232503,1766191842187,-500.0,0.00015999,2]
[399232504,1766191842196,-500.0,0.00015999,2]
[399232505,1766191842207,-500.0,0.00015999,2]
[399232506,1766191842217,-500.0,0.00015999,2]
[399232507,1766191842227,-500.0,0.00015999,2]
[399232508,1766191842238,-500.0,0.00015999,2]
[399232509,1766191842248,-500.0,0.00015999,2]
[399232510,1766191842258,-500.0,0.00015999,2]
[399232511,1766191842270,-200.0,0.00016029,2]
[399232512,1766191842280,-340.85086532,0.00016072,2]
[399232513,1766191842291,-1300.4,0.00016164,2]
[399232514,1766191842301,-1059.5542543,0.00016186,2]
[399232515,1766191842313,-151.0,0.00016225,2]
[399232516,1766191842324,-311.1,0.00016225,2]
[399232517,1766191842333,-1600.0,0.00016243,2]
[399232518,1766191842343,-500.0,0.00016299,2]
[399232519,1766191842353,-500.0,0.00016299,2]
[399232520,1766191842363,-474.39188486,0.00016299,2]
[399232521,1766191842374,-500.0,0.00016299,2]
[399232522,1766191842385,-500.0,0.00016299,2]
[399232523,1766191842396,-500.0,0.000163,2]
[399232524,1766191842406,-500.0,0.000163,2]
[399232526,1766191842415,-500.0,0.000163,2]
[399232527,1766191842426,-500.0,0.000163,2]
[399232528,1766191842435,-500.0,0.000163,2]
[399232529,1766191842445,-500.0,0.000163,2]
[399232530,1766191842455,-162.31867458,0.000163,2]
[399232531,1766191842467,-500.0,0.000163,2]
[399232532,1766191842477,-161.98624356,0.000163,2]
[399232533,1766191842487,-570.06161909,0.000163,2]
[399232534,1766191842497,-500.0,0.000163,2]
[399232535,1766191842506,-500.0,0.000163,2]
[399232536,1766191842515,-500.0,0.000163,2]
[399232537,1766191842528,-500.0,0.000163,2]
[399232538,1766191842537,-500.0,0.000163,2]
[399232539,1766191842547,-500.0,0.000163,2]
[399232540,1766191842562,-500.0,0.000163,2]
[399232541,1766191842571,-333.35137801,0.000163,2]
[399232543,1766191842580,-500.0,0.000163,2]
[399232545,1766191842591,-518.59682921,0.000163,2]
[399232547,1766191842601,-500.0,0.000163,2]
[399232548,1766191842611,-500.0,0.000163,2]
[399232549,1766191842622,-500.0,0.000163,2]
[399232550,1766191842632,-330.58452065,0.000163,2]
[399232551,1766191842642,-500.0,0.000163,2]
[399232552,1766191842651,-500.0,0.000163,2]
[399232553,1766191842661,-500.0,0.000163,2]
[399232554,1766191842670,-167.90874605,0.000163,2]
[399232555,1766191842680,-500.0,0.000163,2]
[399232556,1766191842690,-451.84220836,0.000163,2]
[399232557,1766191842699,-589.83150472,0.000163,2]
[399232558,1766191842710,-500.0,0.000163,2]
[399232559,1766191842719,-500.0,0.000163,2]
[399232560,1766191842730,-426.23716195,0.000163,2]
[399232561,1766191842740,-500.0,0.000163,2]
[399232562,1766191842750,-500.0,0.000163,2]
[399232563,1766191842760,-500.0,0.000163,2]
[399232564,1766191842769,-500.0,0.000163,2]
[399232565,1766191842779,-500.0,0.000163,2]
[399232566,1766191842788,-334.43808915,0.000163,2]
[399232567,1766191842797,-500.0,0.000163,2]
[399232568,1766191842807,-500.0,0.000163,2]
[399232569,1766191842816,-177.09914604,0.000163,2]
[399232570,1766191842825,-162.2031971,0.000163,2]
[399232571,1766191842835,-500.0,0.000163,2]
[399232572,1766191842844,-500.0,0.000163,2]
[399232573,1766191842853,-500.0,0.000163,2]
[399232574,1766191842863,-555.70530345,0.000163,2]
[399232575,1766191842872,-500.0,0.000163,2]
[399232576,1766191842881,-500.0,0.000163,2]
[399232577,1766191842890,-166.85768029,0.000163,2]
[399232578,1766191842899,-500.0,0.000163,2]
[399232579,1766191842908,-522.8425268,0.000163,2]
[399232580,1766191842918,-500.0,0.000163,2]
[399232581,1766191842927,-500.0,0.000163,2]
[399232582,1766191842937,-500.0,0.000163,2]
[399232583,1766191842946,-500.0,0.000163,2]
[399232584,1766191842955,-161.02777074,0.000163,2]
[399232585,1766191842964,-500.0,0.000163,2]
[399232586,1766191842973,-500.0,0.000163,2]
[399232587,1766191842982,-542.76869497,0.000163,2]
[399232588,1766191842991,-500.0,0.000163,2]
[399232590,1766191843001,-159.38113673,0.000163,2]
[399232591,1766191843010,-516.25277369,0.000163,2]
[399232592,1766191843019,-500.0,0.000163,2]
[399232593,1766191843028,-168.51399609,0.000163,2]
[399232594,1766191843037,-500.0,0.000163,2]
[399232595,1766191843047,-500.0,0.000163,2]
[399232596,1766191843056,-468.39914769,0.000163,2]
[399232597,1766191843066,-500.0,0.000163,2]
[399232598,1766191843075,-576.83817064,0.000163,2]
[399232599,1766191843085,-500.0,0.000163,2]
[399232600,1766191843094,-500.0,0.000163,2]
[399232601,1766191843103,-529.81919034,0.000163,2]
[399232602,1766191843263,-344.53874952,0.000163,2]
[399232603,1766191843273,-220.19602395,0.000163,2]
[399232604,1766191843283,-500.0,0.000163,2]
[399232605,1766191843292,-500.0,0.000163,2]
[399232606,1766191843302,-500.0,0.000163,2]
[399232607,1766191843311,-500.0,0.000163,2]
[399232608,1766191843320,-500.0,0.000163,2]
[399232609,1766191843329,-500.0,0.000163,2]
[399232610,1766191843338,-500.0,0.000163,2]
[399232611,1766191843348,-500.0,0.000163,2]
[399232612,1766191843357,-150.0,0.00016307,2]
[399232613,1766191843366,-3927.26461855,0.00016344,2]
[399232614,1766191843375,-6249.21046004,0.00016344,2]